[Event "1000GM Spring Break Schev-E 2024"]
[Site "San Jose"]
[Date "2024.04.07"]
[Round "2.4"]
[White "Tang, Dylan"]
[Black "Jimenez Garcia, Emmanuel"]
[Result "1-0"]
[ECO "C41"]
[WhiteElo "2217"]
[BlackElo "2421"]
[Annotator "TA"]
[PlyCount "39"]
[EventDate "2024.03.28"]
[EventType "schev"]
[EventCountry "USA"]
[SourceTitle "playchess.com"]
[Source "ChessBase"]
[SourceQuality "1"]
[TimeControl "5400+30"]

{[%evp 9,39,-17,0,0,0,0,-13,0,0,-10,-14,-16,0,0,0,0,16,11,118,68,44,37,39,44,75,29,42,14,23,41,196,197]} 1. e4 {[%emt 0:02:06]} d6 {[%emt 0:00:10]} 2. d4 {[%emt 0:00:23]} Nf6 {[%emt 0:00:08]} 3. Nc3 {[%emt 0:01:35]} e5 {[%emt 0:00:06]} 4. Nf3 {[%emt 0:00:05]} Nbd7 {[%emt 1:32:06]} 5. g4 {[%emt 0:00:22]} Nxg4 {[%emt 0:00:00]} 6. Rg1 {[%emt 0:01:06]} Ngf6 {[%emt 0:00:00]} 7. Bc4 {[%emt 0:00:12]} h6 {[%emt 0:00:00] Against Ng5} 8. Be3 {[%emt 0:00:10] The position is equal.} c6 {[%emt 0:00:00]} 9. a4 {[%emt 0:00:06]} Qa5 {[%emt 0:00:00]} 10. Nd2 {[%emt 0:00:21][%cal Bf3d2,Bd2c4,Bc4e3,Be3c4,Bc4e5][%mdl 32]} exd4 {[%emt 0:00:00]} 11. Bxd4 {[%emt 0:00:09]} Ne5 {[%emt 0:00:00]} 12. Qe2 {[%emt 0:12:47]} Nxc4 {[%emt 0:00:00]} 13. Nxc4 {[%emt 0:00:37]} Qb4 {[%emt 0:00:00] [#]} (13... Qh5 $11) 14. O-O-O {[%emt 0:29:09] White is more active.} (14. a5 $1 $16 {Hoping for Ra4.} Be6 15. Ra4 Bxc4 16. Qd1 Qxb2 17. Nd5 Qxd4 (17... Be2 $2 18. Kxe2 $18) 18. Nc7+ Kd8 19. Qxd4 Kxc7 20. Qxc4 (20. Rxc4 c5 $18)) 14... Be6 $14 {[%emt 0:00:00]} 15. Ne3 {[%emt 0:05:09][%cal Oe3d5][%mdl 1024] White has compensation.} O-O-O {[%emt 0:00:00][%cal Of6e4]} 16. f4 $36 {[%emt 0:00:14][%cal Bf2f4,Bf4f5][%mdl 2080] White has some pressure.} Kb8 {[%emt 0:00:00]} 17. f5 {[%emt 0:08:42]} Bc8 {[%emt 0:00:00]} 18. Nc4 {[%emt 0:00:52] Black must now prevent b3.} b6 {[%emt 0:00:00]} 19. Qd3 {[%emt 0:07:57][%cal Oc4e5] Strongly threatening Ne5!} Ba6 $2 {[%emt 0:00:00] [#]} ({Black should try} 19... Ka8 $14) 20. Ne5 $1 {[%emt 0:00:17][%mdl 512] Weighted Error Value: White=0.07 (flawless) /Black=0.25 (precise) .  Mistake:       	White=1     	Black=2      Inaccurate:     	White=1     	---        OK:         	White=6     	Black=6      Best:        	White=1     	Black=2      Brilliant:      	White=1     	---} 1-0

[Event "1000GM Spring Break Schev-E 2024"]
[Site "San Jose"]
[Date "2024.04.07"]
[Round "2.5"]
[White "Atwell, Rose"]
[Black "Arenas, David"]
[Result "1/2-1/2"]
[ECO "B53"]
[WhiteElo "2279"]
[BlackElo "2366"]
[Annotator "RC"]
[PlyCount "58"]
[EventDate "2024.03.28"]
[EventType "schev"]
[EventCountry "USA"]
[SourceTitle "playchess.com"]
[Source "ChessBase"]
[SourceQuality "1"]
[TimeControl "5400+30"]

1. e4 {[%emt 0:00:01]} c5 {[%emt 0:03:46]} 2. Nf3 {[%emt 0:00:07]} d6 {[%emt 0:00:04]} 3. d4 {[%emt 0:00:04]} Nf6 {[%emt 0:00:05]} 4. Nc3 {[%emt 0:00:05]} cxd4 {[%emt 0:00:03]} 5. Qxd4 {[%emt 0:00:07]} a6 {[%emt 0:00:11]} 6. e5 {[%emt 0:01:02]} Nc6 {[%emt 0:02:28]} 7. Qa4 {[%emt 0:00:31]} dxe5 {[%emt 0:13:37]} 8. Nxe5 {[%emt 0:00:07]} Bd7 {[%emt 0:00:45]} 9. Nxd7 {[%emt 0:02:08]} Qxd7 {[%emt 0:00:04]} 10. Be3 {[%emt 0:07:52]} e6 {[%emt 0:01:10]} 11. Rd1 {[%emt 0:03:35]} Qc7 {[%emt 0:01:05]} 12. Nb5 {[%emt 0:14:31]} Qe5 {[%emt 0:06:25]} 13. Nd4 {[%emt 0:08:42]} Qa5+ {[%emt 0:07:39]} 14. Qxa5 {[%emt 0:00:09]} Nxa5 {[%emt 0:00:01]} 15. Bd2 {[%emt 0:06:55]} Nc6 {[%emt 0:00:04]} 16. Nxc6 {[%emt 0:00:05]} bxc6 {[%emt 0:00:01]} 17. Be2 {[%emt 0:04:07]} a5 {[%emt 0:00:04]} 18. O-O {[%emt 0:05:07]} Bc5 {[%emt 0:02:28]} 19. Bf3 {[%emt 0:02:59]} Ra6 {[%emt 0:00:05]} 20. Bc3 {[%emt 0:02:09]} Ke7 {[%emt 0:00:10]} 21. Rd3 {[%emt 0:03:53]} Rd8 {[%emt 0:03:35]} 22. Rxd8 {[%emt 0:02:32]} Kxd8 {[%emt 0:00:02]} 23. Rd1+ {[%emt 0:00:09]} Ke7 {[%emt 0:00:08]} 24. Kf1 {[%emt 0:03:07]} g6 {[%emt 0:02:58]} 25. Bxf6+ {[%emt 0:04:13]} Kxf6 {[%emt 0:00:01]} 26. Rd7 {[%emt 0:01:17]} Be7 {[%emt 0:02:25]} 27. Ke2 {[%emt 0:01:28]} a4 {[%emt 0:03:46]} 28. Kd3 {[%emt 0:03:05]} Rb6 {[%emt 0:00:19]} 29. b3 {[%emt 0:00:20]} Ra6 {[%emt 0:00:31]} 1/2-1/2

[Event "1000GM Spring Break Schev-E 2024"]
[Site "San Jose"]
[Date "2024.04.07"]
[Round "3.1"]
[White "Guo, Ethan"]
[Black "Figueredo Losada, Leonel"]
[Result "0-1"]
[ECO "C70"]
[WhiteElo "2211"]
[BlackElo "2323"]
[Annotator "RC"]
[PlyCount "110"]
[EventDate "2024.03.28"]
[EventType "schev"]
[EventCountry "USA"]
[SourceTitle "playchess.com"]
[Source "ChessBase"]
[SourceQuality "1"]
[TimeControl "5400+30"]

1. e4 {[%emt 0:00:01]} e5 {[%emt 0:01:08]} 2. Nf3 {[%emt 0:00:07]} Nc6 {[%emt 0:00:03]} 3. Bb5 {[%emt 0:00:09]} a6 {[%emt 0:00:06]} 4. Ba4 {[%emt 0:00:05]} g6 {[%emt 0:00:04]} 5. Nc3 {[%emt 0:01:07]} Bg7 {[%emt 0:00:06]} 6. O-O {[%emt 0:00:24]} Nge7 {[%emt 0:01:37]} 7. Nd5 {[%emt 0:01:33]} O-O {[%emt 0:03:51]} 8. Nxe7+ {[%emt 1:31:04]} Qxe7 {[%emt 0:00:15]} 9. Re1 {[%emt 0:00:00]} b5 {[%emt 0:01:49]} 10. Bb3 {[%emt 0:00:00]} Na5 {[%emt 0:00:04]} 11. h3 {[%emt 0:00:00]} Bb7 {[%emt 0:00:34]} 12. d3 {[%emt 0:00:00]} Nxb3 {[%emt 0:00:53]} 13. axb3 {[%emt 0:00:00]} d6 {[%emt 0:00:40]} 14. c3 {[%emt 0:00:00]} c5 {[%emt 0:09:55]} 15. Nh2 {[%emt 0:00:00]} f5 {[%emt 0:08:11]} 16. exf5 {[%emt 0:00:00]} gxf5 {[%emt 0:00:22]} 17. d4 {[%emt 0:00:00]} cxd4 {[%emt 0:00:05]} 18. cxd4 {[%emt 0:00:00]} Qf7 {[%emt 0:01:10]} 19. dxe5 {[%emt 0:00:00]} dxe5 {[%emt 0:00:10]} 20. b4 {[%emt 0:00:00]} Qc4 {[%emt 0:11:58]} 21. Qd6 {[%emt 0:00:00]} Rfd8 {[%emt 0:18:58]} 22. Qe7 {[%emt 0:00:00]} Qf7 {[%emt 0:09:54]} 23. Qxf7+ {[%emt 0:00:00]} Kxf7 {[%emt 0:00:01]} 24. Be3 {[%emt 0:00:00]} e4 {[%emt 0:00:36]} 25. Rac1 {[%emt 0:00:00]} Rac8 {[%emt 0:00:08]} 26. Rxc8 {[%emt 0:00:00]} Rxc8 {[%emt 0:00:05]} 27. Rd1 {[%emt 0:00:00]} Ke6 {[%emt 0:00:26]} 28. Bc5 {[%emt 0:00:00]} Be5 {[%emt 0:00:05]} 29. f3 {[%emt 0:10:30]} a5 30. fxe4 {[%emt 0:00:00]} Bxe4 {[%emt 0:00:33]} 31. Nf3 {[%emt 0:00:00]} Bxf3 {[%emt 0:00:00]} 32. gxf3 {[%emt 0:00:00]} Bxb2 {[%emt 0:09:12]} 33. Rd6+ {[%emt 0:00:00]} Ke5 {[%emt 0:00:07]} 34. Rb6 {[%emt 0:02:30]} a4 35. Rxb5 a3 36. Ra5 Kd5 37. Be7+ Kc4 38. b5 Kb3 39. Bxa3 Bxa3 40. b6 Bc5+ 41. Kf1 Kb4 42. b7 Rb8 43. Ra6 Rxb7 44. Rf6 Kc4 45. Rxf5 Bd4 46. Kg2 Rg7+ 47. Kh2 Kd3 48. h4 {[%emt 0:00:00]} Ke2 {[%emt 0:08:46]} 49. Kh3 {[%emt 0:00:00]} Be3 {[%emt 0:01:22]} 50. h5 {[%emt 0:00:00]} Kf2 {[%emt 0:00:51]} 51. Kh2 {[%emt 0:00:00]} Bb6 {[%emt 0:00:49]} 52. f4 {[%emt 0:00:00]} Bc7 {[%emt 0:04:48]} 53. Rf8 {[%emt 0:00:00]} Kf3 {[%emt 0:00:20]} 54. Kh3 {[%emt 0:00:00]} Bxf4 {[%emt 0:00:12]} 55. Kh4 {[%emt 0:00:00]} Rg1 {[%emt 0:00:13]} 0-1

[Event "1000GM Spring Break Schev-E 2024"]
[Site "San Jose"]
[Date "2024.04.07"]
[Round "3.2"]
[White "Liu, Patrick"]
[Black "Alarcon Bahamondez, Roberto Ignacio"]
[Result "0-1"]
[ECO "C42"]
[WhiteElo "2113"]
[BlackElo "2300"]
[Annotator "RC"]
[PlyCount "112"]
[EventDate "2024.03.28"]
[EventType "schev"]
[EventCountry "USA"]
[SourceTitle "playchess.com"]
[Source "ChessBase"]
[SourceQuality "1"]
[TimeControl "5400+30"]

1. e4 {[%emt 0:05:09]} e5 {[%emt 0:00:09]} 2. Nf3 {[%emt 0:00:12]} Nf6 {[%emt 0:00:07]} 3. Nxe5 {[%emt 0:00:26]} d6 {[%emt 0:00:14]} 4. Nf3 {[%emt 0:00:01]} Nxe4 {[%emt 0:00:10]} 5. Nc3 {[%emt 0:00:21]} Nf6 {[%emt 0:01:13]} 6. d4 {[%emt 0:00:53]} Bf5 {[%emt 0:01:45]} 7. Be3 {[%emt 0:03:20]} d5 {[%emt 0:03:53]} 8. Bd3 {[%emt 0:06:10]} Bxd3 {[%emt 0:00:25]} 9. Qxd3 {[%emt 0:00:09]} c6 {[%emt 0:02:09]} 10. Bf4 {[%emt 0:03:25]} Bb4 {[%emt 0:05:06]} 11. O-O-O {[%emt 0:10:34]} O-O {[%emt 0:00:26]} 12. Ne2 {[%emt 0:02:57]} Ne4 {[%emt 0:04:49]} 13. Be3 {[%emt 0:03:08]} Re8 {[%emt 0:01:28]} 14. h4 {[%emt 0:02:46]} Qa5 {[%emt 0:05:01]} 15. Kb1 {[%emt 0:01:38]} Qa6 {[%emt 0:00:51]} 16. Nf4 {[%emt 0:03:48]} Bd6 {[%emt 0:03:08]} 17. Qxa6 {[%emt 0:07:26]} Nxa6 {[%emt 0:00:19]} 18. Nd3 {[%emt 0:00:37]} Nb4 {[%emt 0:03:32]} 19. Nxb4 {[%emt 0:00:48]} Bxb4 {[%emt 0:00:56]} 20. Ne5 {[%emt 0:03:52]} Bd6 {[%emt 0:03:02]} 21. Nd3 {[%emt 0:00:32]} Ng3 {[%emt 0:04:52]} 22. Rh3 {[%emt 0:03:27]} Nf5 {[%emt 0:00:31]} 23. g4 {[%emt 0:03:43]} Nxe3 {[%emt 0:00:30]} 24. fxe3 {[%emt 0:00:20]} Re4 {[%emt 0:00:55]} 25. Nf2 {[%emt 0:00:17]} Re6 {[%emt 0:00:06]} 26. Kc1 {[%emt 0:01:33]} Rf6 {[%emt 0:04:13]} 27. Nd3 {[%emt 0:01:30]} Rg6 {[%emt 0:03:36]} 28. Nf2 {[%emt 0:01:20]} Re8 {[%emt 0:01:33]} 29. Kd2 {[%emt 0:01:09]} h5 {[%emt 0:00:55]} 30. gxh5 {[%emt 0:02:37]} Rg3 {[%emt 0:06:11]} 31. Rxg3 {[%emt 0:04:25]} Bxg3 {[%emt 0:00:05]} 32. Ng4 {[%emt 0:00:07]} Re4 {[%emt 0:01:21]} 33. Ne5 {[%emt 0:06:36]} Bxe5 {[%emt 0:01:10]} 34. dxe5 {[%emt 0:00:08]} Rxh4 {[%emt 0:01:41]} 35. c4 {[%emt 0:02:49]} Rxh5 {[%emt 0:01:05]} 36. cxd5 {[%emt 0:00:34]} Rxe5 {[%emt 0:01:36]} 37. dxc6 {[%emt 0:00:14]} Rd5+ {[%emt 0:00:23]} 38. Kc2 {[%emt 0:00:01]} bxc6 {[%emt 0:02:08]} 39. Rg1 {[%emt 0:00:37]} f6 {[%emt 0:00:48]} 40. b4 {[%emt 0:03:12]} Rb5 {[%emt 0:05:36]} 41. Kc3 {[%emt 0:01:34]} Kf7 {[%emt 0:02:00]} 42. a4 {[%emt 0:17:05]} Re5 {[%emt 0:00:55]} 43. Kd4 {[%emt 0:00:00]} g5 {[%emt 0:05:37]} 44. Rc1 {[%emt 0:00:00]} Re6 {[%emt 0:01:12]} 45. Rg1 {[%emt 0:00:00]} Kg6 {[%emt 0:01:00]} 46. e4 {[%emt 0:00:00]} Re5 {[%emt 0:01:29]} 47. Rc1 {[%emt 0:00:00]} Re6 {[%emt 0:00:33]} 48. Rg1 {[%emt 0:00:00]} a6 {[%emt 0:02:58]} 49. a5 {[%emt 0:00:00]} Kh5 {[%emt 0:01:53]} 50. Rb1 {[%emt 0:00:00]} g4 {[%emt 0:02:54]} 51. Kc5 {[%emt 0:00:00]} g3 {[%emt 0:00:50]} 52. Kb6 {[%emt 0:00:00]} Rxe4 {[%emt 0:04:15]} 53. Kxa6 {[%emt 0:00:11]} f5 {[%emt 0:00:11]} 54. Kb7 {[%emt 0:04:43]} f4 {[%emt 0:00:27]} 55. a6 {[%emt 0:00:32]} f3 {[%emt 0:00:22]} 56. Kxc6 {[%emt 0:00:35]} g2 {[%emt 0:02:37]} 0-1

[Event "1000GM Spring Break Schev-E 2024"]
[Site "San Jose"]
[Date "2024.04.07"]
[Round "3.3"]
[White "Jimenez Garcia, Emmanuel"]
[Black "Deng, Henry"]
[Result "1/2-1/2"]
[ECO "D45"]
[WhiteElo "2421"]
[BlackElo "2305"]
[Annotator "TA"]
[PlyCount "57"]
[EventDate "2024.03.28"]
[EventType "schev"]
[EventCountry "USA"]
[SourceTitle "playchess.com"]
[Source "ChessBase"]
[SourceQuality "1"]
[TimeControl "5400+30"]

{[%evp 11,57,0,12,7,19,-4,2,0,9,7,14,13,18,17,22,19,25,9,22,21,19,15,13,15,18,0,0,0,0,0,0,0,0,0,0,0,0,0,0,0,0,0,0,0,0,0,0,0]} 1. Nf3 {[%emt 0:01:13]} d5 {[%emt 0:00:21]} 2. e3 {[%emt 0:00:06]} Nf6 {[%emt 0:00:56]} 3. c4 {[%emt 0:00:04]} c6 {[%emt 0:00:23]} 4. Nc3 {[%emt 0:00:06]} Nbd7 {[%emt 0:00:58]} 5. cxd5 {[%emt 0:01:17]} cxd5 {[%emt 0:00:15]} 6. d4 {[%emt 0:00:02]} e6 {[%emt 0:02:21]} 7. Bd2 {[%emt 0:04:31]} a6 {[%emt 0:02:00]} 8. a4 {[%emt 0:01:08]} b6 {[%emt 0:03:50]} 9. Bd3 {[%emt 0:02:02]} Bb7 {[%emt 0:02:14]} 10. O-O {[%emt 0:01:24]} Bd6 {[%emt 0:01:06]} 11. Na2 {[%emt 0:00:22]} Qe7 {[%emt 0:02:54]} 12. Qb3 {[%emt 0:02:45]} O-O {[%emt 0:06:00]} 13. Bb4 {[%emt 0:00:29]} Rfc8 {[%emt 0:03:06]} 14. Rfc1 {[%emt 0:11:02]} Rab8 {[%emt 0:11:07] The position is equal.} 15. Bxd6 {[%emt 0:01:15]} (15. Rxc8+ {simplifies} Rxc8 16. Bxd6 Qxd6 17. g3) 15... Qxd6 {[%emt 0:00:07]} (15... Rxc1+ 16. Nxc1 (16. Rxc1 Qxd6 17. Ne5 Kf8 $14) 16... Qxd6 17. Qa2) 16. Qb4 {[%emt 0:00:14]} Qxb4 {[%emt 0:05:04]} 17. Nxb4 {[%emt 0:00:03]} a5 {[%emt 0:00:24]} 18. Na6 {[%emt 0:01:05]} Rxc1+ {[%emt 0:00:26]} 19. Rxc1 {[%emt 0:00:02]} Rc8 {[%emt 0:00:04]} (19... Ra8 $5 20. Nc7 $8 Rc8 $11) 20. Rxc8+ {[%emt 0:01:27]} Bxc8 {[%emt 0:00:05]} 21. Nc7 {[%emt 0:00:05]} Kf8 {[%emt 0:00:49]} 22. h3 {[%emt 0:02:47]} Ke7 {[%emt 0:01:32]} 23. g4 {[%emt 0:00:46]} h6 {[%emt 0:00:20]} 24. Kg2 {[%emt 0:00:21]} Kd8 {[%emt 0:01:30]} 25. Nb5 {[%emt 0:00:08]} Ba6 {[%emt 0:00:46]} 26. Ne1 {[%emt 0:02:29]} Bxb5 {[%emt 0:01:58]} 27. Bxb5 {[%emt 0:00:02]} Ne4 {[%emt 0:01:04]} 28. Bd3 {[%emt 0:04:15]} Nd6 {[%emt 0:01:24]} 29. f4 {[%emt 0:01:33] A rather calm draw.   Weighted Error Value: White=0.04 (flawless) /Black=0.03 (flawless) .  OK:         	White=6     	Black=12     Best:        	---       	Black=1} 1/2-1/2

[Event "1000GM Spring Break Schev-E 2024"]
[Site "San Jose"]
[Date "2024.04.07"]
[Round "3.4"]
[White "Arenas, David"]
[Black "Tang, Dylan"]
[Result "1/2-1/2"]
[ECO "C50"]
[WhiteElo "2366"]
[BlackElo "2217"]
[Annotator "RC"]
[PlyCount "60"]
[EventDate "2024.03.28"]
[EventType "schev"]
[EventCountry "USA"]
[SourceTitle "playchess.com"]
[Source "ChessBase"]
[SourceQuality "1"]
[TimeControl "5400+30"]

1. e4 {[%emt 0:01:46]} e5 {[%emt 0:01:54]} 2. Nf3 {[%emt 0:01:16]} Nc6 {[%emt 0:02:28]} 3. Bc4 {[%emt 0:00:12]} Bc5 {[%emt 0:00:07]} 4. d3 {[%emt 0:00:03]} Nf6 {[%emt 0:00:10]} 5. a4 {[%emt 0:00:04]} O-O {[%emt 0:01:42]} 6. O-O {[%emt 0:00:12]} d6 {[%emt 0:04:40]} 7. a5 {[%emt 0:00:25]} Be6 {[%emt 0:01:35]} 8. Bxe6 {[%emt 0:00:10]} fxe6 {[%emt 0:00:09]} 9. c3 {[%emt 0:00:03]} a6 {[%emt 0:02:51]} 10. b4 {[%emt 0:00:04]} Ba7 {[%emt 0:01:29]} 11. Be3 {[%emt 0:00:16]} Bxe3 {[%emt 0:04:02]} 12. fxe3 {[%emt 0:00:11]} d5 {[%emt 0:00:13]} 13. Nbd2 {[%emt 0:08:13]} Qd7 {[%emt 0:03:15]} 14. Qe2 {[%emt 0:07:37]} Rad8 {[%emt 0:03:18]} 15. Rfd1 {[%emt 0:01:09]} Qe7 {[%emt 0:04:28]} 16. Rab1 {[%emt 0:01:58]} Rd7 {[%emt 0:07:00]} 17. Qe1 {[%emt 0:08:14]} Rfd8 {[%emt 0:02:31]} 18. Qe2 {[%emt 0:04:25]} h6 {[%emt 0:07:32]} 19. h3 {[%emt 0:06:01]} Qe8 {[%emt 0:06:34]} 20. Rbc1 {[%emt 0:04:52]} Qg6 {[%emt 0:04:58]} 21. Nh4 {[%emt 0:03:58]} Qg3 {[%emt 0:04:29]} 22. Nhf3 {[%emt 0:00:10]} Qg6 {[%emt 0:07:16]} 23. Nh4 {[%emt 0:00:01]} Qh7 {[%emt 0:00:02]} 24. exd5 {[%emt 0:00:06]} Rxd5 {[%emt 0:00:21]} 25. d4 {[%emt 0:05:31]} exd4 {[%emt 0:00:54]} 26. exd4 {[%emt 0:02:31]} e5 {[%emt 0:01:31]} 27. Nb3 {[%emt 0:02:59]} exd4 {[%emt 0:01:01]} 28. Nxd4 {[%emt 0:02:38]} Qe4 {[%emt 0:01:15]} 29. Qxe4 {[%emt 0:02:20]} Nxe4 {[%emt 0:00:06]} 30. Re1 {[%emt 0:00:03]} Nxd4 {[%emt 0:27:39]} 1/2-1/2

[Event "1000GM Spring Break Schev-E 2024"]
[Site "San Jose"]
[Date "2024.04.07"]
[Round "3.5"]
[White "Atwell, Rose"]
[Black "Zuluaga Mancilla, Cesar"]
[Result "1-0"]
[ECO "B50"]
[WhiteElo "2279"]
[BlackElo "2206"]
[Annotator "RC"]
[PlyCount "89"]
[EventDate "2024.03.28"]
[EventType "schev"]
[EventCountry "USA"]
[SourceTitle "playchess.com"]
[Source "ChessBase"]
[SourceQuality "1"]
[TimeControl "5400+30"]

1. e4 {[%emt 0:00:01]} c5 {[%emt 0:10:20]} 2. Nf3 {[%emt 0:00:06]} e6 {[%emt 0:00:04]} 3. b3 {[%emt 0:00:05]} a6 {[%emt 0:03:34]} 4. Bb2 {[%emt 0:00:24]} d6 {[%emt 0:01:12]} 5. d4 {[%emt 0:03:27]} cxd4 {[%emt 0:01:18]} 6. Qxd4 {[%emt 0:04:16]} Nc6 {[%emt 0:01:32]} 7. Qd2 {[%emt 0:00:55]} Nf6 {[%emt 0:00:48]} 8. Bd3 {[%emt 0:01:29]} Be7 {[%emt 0:01:51]} 9. c4 {[%emt 0:02:26]} O-O {[%emt 0:10:50]} 10. Nc3 {[%emt 0:03:42]} Ne5 {[%emt 0:02:30]} 11. Bc2 {[%emt 0:07:20]} Qc7 {[%emt 0:00:51]} 12. Nd4 {[%emt 0:01:48]} Bd7 {[%emt 0:01:31]} 13. f4 {[%emt 0:06:08]} Nc6 {[%emt 0:00:15]} 14. Nf3 {[%emt 0:00:18]} Rfc8 {[%emt 0:08:26]} 15. O-O {[%emt 0:07:19]} b5 {[%emt 0:11:08]} 16. cxb5 {[%emt 0:05:47]} axb5 {[%emt 0:04:11]} 17. Kh1 {[%emt 0:04:30]} Nb4 {[%emt 0:02:26]} 18. Bb1 {[%emt 0:01:34]} Be8 {[%emt 0:02:01]} 19. a3 {[%emt 0:04:00]} Na6 {[%emt 0:00:13]} 20. e5 {[%emt 0:04:43]} dxe5 {[%emt 0:04:33]} 21. fxe5 {[%emt 0:00:07]} Ng4 {[%emt 0:00:24]} 22. Qd4 {[%emt 0:08:40]} h5 {[%emt 0:07:15]} 23. h3 {[%emt 0:03:44]} Nh6 {[%emt 0:00:35]} 24. b4 {[%emt 0:03:02]} Qa7 {[%emt 0:03:27]} 25. Qd3 {[%emt 0:01:42]} g6 {[%emt 0:03:21]} 26. Nxb5 {[%emt 0:01:13]} Bxb5 {[%emt 0:04:20]} 27. Qxb5 {[%emt 0:00:04]} Rab8 {[%emt 0:00:30]} 28. Qe2 {[%emt 0:01:15]} Nc7 {[%emt 0:00:07]} 29. Nd4 {[%emt 0:02:21]} Nd5 {[%emt 0:04:29]} 30. Be4 {[%emt 0:02:13]} Qd7 {[%emt 0:01:33]} 31. Rad1 {[%emt 0:01:09]} Bf8 {[%emt 0:00:33]} 32. Qd3 {[%emt 0:06:52]} Ne7 {[%emt 0:01:18]} 33. Qf3 {[%emt 0:00:41]} Qe8 {[%emt 0:00:52]} 34. Bc1 {[%emt 0:02:22]} Bg7 {[%emt 0:00:40]} 35. b5 {[%emt 0:00:52]} Nhf5 {[%emt 0:00:35]} 36. Nc6 {[%emt 0:05:04]} Rxb5 {[%emt 0:01:10]} 37. Na7 {[%emt 0:00:07]} Bxe5 {[%emt 0:02:11]} 38. Nxc8 {[%emt 0:00:22]} Qxc8 {[%emt 0:00:17]} 39. Bf4 {[%emt 0:01:47]} Qb8 {[%emt 0:01:54]} 40. g4 {[%emt 0:01:59]} hxg4 {[%emt 0:02:18]} 41. hxg4 {[%emt 0:00:10]} Bxf4 {[%emt 0:02:33]} 42. gxf5 {[%emt 0:00:08]} g5 {[%emt 0:00:58]} 43. fxe6 {[%emt 0:01:36]} f5 {[%emt 0:00:04]} 44. Qh5 {[%emt 0:00:44]} Qf8 {[%emt 0:00:33]} 45. Rxf4 {[%emt 0:00:12]} 1-0

[Event "1000GM Spring Break Schev-E 2024"]
[Site "San Jose"]
[Date "2024.04.07"]
[Round "4.1"]
[White "Alarcon Bahamondez, Roberto Ignacio"]
[Black "Guo, Ethan"]
[Result "1/2-1/2"]
[ECO "A26"]
[WhiteElo "2300"]
[BlackElo "2211"]
[Annotator "RC"]
[PlyCount "65"]
[EventDate "2024.03.28"]
[EventType "schev"]
[EventCountry "USA"]
[SourceTitle "playchess.com"]
[Source "ChessBase"]
[SourceQuality "1"]
[TimeControl "5400+30"]

1. c4 {[%emt 0:01:30]} Nf6 {[%emt 0:00:12]} 2. Nc3 {[%emt 0:00:06]} g6 {[%emt 0:00:04]} 3. e4 {[%emt 0:00:07]} e5 {[%emt 0:00:24]} 4. g3 {[%emt 0:00:09]} Bg7 {[%emt 0:00:11]} 5. Bg2 {[%emt 0:00:04]} O-O {[%emt 0:00:08]} 6. Nge2 {[%emt 1:31:34]} d6 {[%emt 0:06:40]} 7. O-O {[%emt 0:00:30]} Nc6 {[%emt 0:07:24]} 8. d3 {[%emt 0:00:30]} Nd7 {[%emt 0:04:27]} 9. Rb1 {[%emt 0:00:30]} a5 {[%emt 0:02:33]} 10. Be3 {[%emt 0:00:00]} Nc5 {[%emt 0:08:52]} 11. Qd2 {[%emt 0:00:00]} Ne6 {[%emt 0:00:00]} 12. f4 exf4 {[%emt 0:00:00]} 13. gxf4 {[%emt 0:00:00]} Ned4 {[%emt 1:06:05]} 14. Nxd4 {[%emt 0:02:30]} Nxd4 {[%emt 0:00:00]} 15. Qf2 {[%emt 0:00:00]} c5 {[%emt 0:00:00]} 16. Kh1 {[%emt 0:00:00]} Kh8 {[%emt 0:00:00]} 17. Nb5 {[%emt 0:00:00]} Nxb5 {[%emt 0:00:00]} 18. cxb5 {[%emt 0:00:00]} f5 {[%emt 0:00:00]} 19. Rbd1 {[%emt 0:00:00]} Rb8 {[%emt 0:00:00]} 20. d4 {[%emt 0:00:00]} c4 {[%emt 0:00:00]} 21. e5 {[%emt 0:00:00]} d5 {[%emt 0:00:00]} 22. a4 {[%emt 0:00:00]} Be6 {[%emt 0:00:00]} 23. Bf3 {[%emt 0:00:00]} Rc8 {[%emt 0:00:00]} 24. Bd2 {[%emt 0:00:00]} b6 {[%emt 0:00:00]} 25. Qg2 {[%emt 0:00:00]} Rf7 {[%emt 0:00:00]} 26. Rc1 {[%emt 0:00:00]} Rfc7 {[%emt 0:00:00]} 27. Bd1 {[%emt 0:00:00]} Bf8 {[%emt 0:00:00]} 28. Rf3 {[%emt 0:00:00]} Kg8 {[%emt 0:00:00]} 29. Rh3 {[%emt 0:00:00]} Rg7 {[%emt 0:00:00]} 30. Qf2 {[%emt 0:00:00]} Be7 {[%emt 0:08:30]} 31. Rh6 {[%emt 0:00:00]} Bf8 {[%emt 0:00:00]} 32. Rh3 {[%emt 0:00:00]} Be7 {[%emt 0:00:00]} 33. Rh6 {[%emt 0:09:30]} 1/2-1/2